[Event "*** Titled Tuesday Blitz"]
[Site "Chess.com"]
[Date "2020.03.03"]
[Round "9"]
[White "ahachess"]
[Black "Komissarov_alex"]
[Result "1-0"]
[WhiteElo "2184"]
[BlackElo "1773"]
[TimeControl "180+1"]
[EndTime "10:42:42 PST"]
[Termination "ahachess won by resignation"]

1. d4 {[%clk 0:03:00.9]} 1... Nf6 {[%clk 0:02:52.6]} 2. c4 {[%clk 0:03:00.8]}
2... g6 {[%clk 0:02:48.9]} 3. Nc3 {[%clk 0:02:59.5]} 3... Bg7 {[%clk 0:02:45.9]}
4. e4 {[%clk 0:02:59.5]} 4... d6 {[%clk 0:02:44.7]} 5. Nf3 {[%clk 0:02:59.7]}
5... O-O {[%clk 0:02:40.7]} 6. Be2 {[%clk 0:03:00.2]} 6... Na6 {[%clk
0:02:37.9]} 7. O-O {[%clk 0:03:00.4]} 7... e5 {[%clk 0:02:37.1]} 8. d5 {[%clk
0:03:00.3]} 8... Nc5 {[%clk 0:02:34.1]} 9. Qc2 {[%clk 0:02:59.2]} 9... a5 {[%clk
0:02:32.1]} 10. b3 {[%clk 0:02:59.2]} 10... Nh5 {[%clk 0:02:13.3]} 11. g3 {[%clk
0:02:49.3]} 11... f5 {[%clk 0:02:08.8]} 12. Bg5 {[%clk 0:02:37.3]} 12... Qe8
{[%clk 0:01:48.9]} 13. Nd2 {[%clk 0:02:35.6]} 13... f4 {[%clk 0:01:34.3]} 14. g4
{[%clk 0:02:33.7]} 14... f3 {[%clk 0:01:21.5]} 15. gxh5 {[%clk 0:02:16.1]} 15...
fxe2 {[%clk 0:01:18.8]} 16. Nxe2 {[%clk 0:02:17]} 16... Bg4 {[%clk 0:01:11.6]}
17. f3 {[%clk 0:02:16.1]} 17... Bxh5 {[%clk 0:01:10.3]} 18. Ng3 {[%clk
0:02:13.4]} 18... h6 {[%clk 0:01:07]} 19. Be3 {[%clk 0:02:10.8]} 19... Bf6
{[%clk 0:01:02.1]} 20. Bxh6 {[%clk 0:02:05.6]} 20... Kh7 {[%clk 0:00:56.3]} 21.
Bxf8 {[%clk 0:02:00.6]} 21... Qxf8 {[%clk 0:00:53.2]} 22. Rf2 {[%clk 0:01:51.8]}
22... Bg5 {[%clk 0:00:50.8]} 23. Re1 {[%clk 0:01:41.8]} 23... Qh6 {[%clk
0:00:47.1]} 24. Ndf1 {[%clk 0:01:34.5]} 24... Rf8 {[%clk 0:00:30.1]} 25. Qe2
{[%clk 0:01:32.4]} 25... Bf4 {[%clk 0:00:25.6]} 26. Qd1 {[%clk 0:01:03.4]} 26...
Qg5 {[%clk 0:00:19.2]} 27. Rg2 {[%clk 0:01:01.1]} 27... Qh4 {[%clk 0:00:17.4]}
28. Nxh5 {[%clk 0:00:50.2]} 28... Bg5 {[%clk 0:00:14.5]} 29. Nhg3 {[%clk
0:00:46.4]} 1-0

[Event "*** Titled Tuesday Blitz"]
[Site "Chess.com"]
[Date "2020.03.03"]
[Round "9"]
[White "ShahMatKanal"]
[Black "cottage_cheese"]
[Result "1-0"]
[WhiteElo "2493"]
[BlackElo "2296"]
[TimeControl "180+1"]
[EndTime "10:42:45 PST"]
[Termination "ShahMatKanal won by checkmate"]

1. Nf3 {[%clk 0:03:00.9]} 1... c5 {[%clk 0:02:59.2]} 2. c4 {[%clk 0:02:56.7]}
2... Nc6 {[%clk 0:02:58.8]} 3. b3 {[%clk 0:02:56.9]} 3... g6 {[%clk 0:02:52.8]}
4. Bb2 {[%clk 0:02:57.2]} 4... Nf6 {[%clk 0:02:52.9]} 5. Bxf6 {[%clk 0:02:57.4]}
5... exf6 {[%clk 0:02:52.9]} 6. Nc3 {[%clk 0:02:58.3]} 6... Bg7 {[%clk
0:02:49.5]} 7. g3 {[%clk 0:02:58.7]} 7... O-O {[%clk 0:02:44.4]} 8. Bg2 {[%clk
0:02:58.9]} 8... f5 {[%clk 0:02:39.9]} 9. O-O {[%clk 0:02:58.7]} 9... d6 {[%clk
0:02:36.6]} 10. Nd5 {[%clk 0:02:54.5]} 10... Ne7 {[%clk 0:02:30.1]} 11. Rc1
{[%clk 0:02:41.8]} 11... Nxd5 {[%clk 0:02:28.2]} 12. cxd5 {[%clk 0:02:42.2]}
12... a5 {[%clk 0:02:25.6]} 13. a4 {[%clk 0:02:29.8]} 13... Bd7 {[%clk
0:02:18.6]} 14. d4 {[%clk 0:02:28.1]} 14... b6 {[%clk 0:02:15.2]} 15. Qd3 {[%clk
0:02:20.8]} 15... Qe7 {[%clk 0:02:02.5]} 16. dxc5 {[%clk 0:02:19.1]} 16... bxc5
{[%clk 0:02:01.6]} 17. Nd2 {[%clk 0:02:18.9]} 17... Rfb8 {[%clk 0:01:57.7]} 18.
Nc4 {[%clk 0:02:14.4]} 18... Rb4 {[%clk 0:01:57]} 19. Rfe1 {[%clk 0:02:06.1]}
19... Bc8 {[%clk 0:01:43.9]} 20. e4 {[%clk 0:02:02.3]} 20... fxe4 {[%clk
0:01:42.6]} 21. Rxe4 {[%clk 0:02:00.4]} 21... Qd8 {[%clk 0:01:29.8]} 22. g4
{[%clk 0:01:49.5]} 22... f5 {[%clk 0:01:21.8]} 23. Re6 {[%clk 0:01:36.9]} 23...
Bxe6 {[%clk 0:00:53.3]} 24. dxe6 {[%clk 0:01:37.8]} 24... Ra7 {[%clk 0:00:52.9]}
25. gxf5 {[%clk 0:01:32]} 25... gxf5 {[%clk 0:00:47.1]} 26. Bd5 {[%clk
0:01:28.3]} 26... Re7 {[%clk 0:00:40]} 27. Kh1 {[%clk 0:01:15.8]} 27... Kh8
{[%clk 0:00:38.9]} 28. Rg1 {[%clk 0:01:15.6]} 28... Qf8 {[%clk 0:00:19.3]} 29.
Qg3 {[%clk 0:01:07.7]} 29... Rxc4 {[%clk 0:00:15.1]} 30. bxc4 {[%clk 0:01:06.5]}
30... Be5 {[%clk 0:00:14.7]} 31. Qg5 {[%clk 0:01:01.4]} 31... Rg7 {[%clk
0:00:12.3]} 32. e7 {[%clk 0:00:57.5]} 32... Qe8 {[%clk 0:00:09.2]} 33. Qh4
{[%clk 0:00:51.7]} 33... Rxg1+ {[%clk 0:00:06.4]} 34. Kxg1 {[%clk 0:00:52.6]}
34... Qg6+ {[%clk 0:00:06.2]} 35. Kf1 {[%clk 0:00:50.3]} 35... Qe8 {[%clk
0:00:05.9]} 36. Qg5 {[%clk 0:00:48.5]} 36... Qxa4 {[%clk 0:00:05.1]} 37. Qg8#
{[%clk 0:00:48.4]} 1-0

[Event "*** Titled Tuesday Blitz"]
[Site "Chess.com"]
[Date "2020.03.03"]
[Round "9"]
[White "Peroncio"]
[Black "Noam_Vitenberg"]
[Result "1-0"]
[WhiteElo "2646"]
[BlackElo "2426"]
[TimeControl "180+1"]
[EndTime "10:42:47 PST"]
[Termination "Peroncio won on time"]

1. e4 {[%clk 0:03:00.9]} 1... c6 {[%clk 0:02:59.5]} 2. d4 {[%clk 0:03:00.3]}
2... d5 {[%clk 0:02:59.1]} 3. e5 {[%clk 0:03:00.9]} 3... Bf5 {[%clk 0:02:56.3]}
4. h4 {[%clk 0:03:00.8]} 4... h5 {[%clk 0:02:55.6]} 5. Bd3 {[%clk 0:03:01.2]}
5... Bxd3 {[%clk 0:02:55.1]} 6. Qxd3 {[%clk 0:03:02.1]} 6... e6 {[%clk
0:02:55.8]} 7. Bg5 {[%clk 0:03:02.5]} 7... Be7 {[%clk 0:02:53.4]} 8. Nf3 {[%clk
0:03:02.8]} 8... Nh6 {[%clk 0:02:52.9]} 9. Nc3 {[%clk 0:03:00.3]} 9... Nf5
{[%clk 0:02:39.2]} 10. Ne2 {[%clk 0:02:58.2]} 10... c5 {[%clk 0:02:38.4]} 11. c3
{[%clk 0:02:57.8]} 11... Nc6 {[%clk 0:02:37.5]} 12. Ng3 {[%clk 0:02:51.9]} 12...
Nxg3 {[%clk 0:02:32.6]} 13. fxg3 {[%clk 0:02:50.6]} 13... Rc8 {[%clk 0:02:32.5]}
14. O-O {[%clk 0:02:49.9]} 14... cxd4 {[%clk 0:02:20.6]} 15. cxd4 {[%clk
0:02:50.8]} 15... Qb6 {[%clk 0:02:07.2]} 16. Bxe7 {[%clk 0:02:45.8]} 16... Nxe7
{[%clk 0:02:08.1]} 17. Ng5 {[%clk 0:01:40.3]} 17... Nf5 {[%clk 0:01:38.5]} 18.
Rxf5 {[%clk 0:01:39.4]} 18... exf5 {[%clk 0:01:39.4]} 19. Qxf5 {[%clk
0:01:39.7]} 19... Rc7 {[%clk 0:01:29.9]} 20. e6 {[%clk 0:01:29.9]} 20... f6
{[%clk 0:01:16.5]} 21. Qg6+ {[%clk 0:01:20]} 21... Kf8 {[%clk 0:01:16]} 22. Rf1
{[%clk 0:01:12.8]} 22... Qxd4+ {[%clk 0:00:56.1]} 23. Kh2 {[%clk 0:01:11.3]}
23... Rh6 {[%clk 0:00:55.7]} 24. Nh7+ {[%clk 0:01:05.7]} 24... Rxh7 {[%clk
0:00:23.6]} 25. Qxh7 {[%clk 0:01:06.6]} 25... Qg4 {[%clk 0:00:23]} 26. Re1
{[%clk 0:00:49.2]} 26... Ke7 {[%clk 0:00:21.6]} 27. Qg8 {[%clk 0:00:46.1]} 27...
Qg6 {[%clk 0:00:20.6]} 28. Qb8 {[%clk 0:00:46.6]} 28... Rc4 {[%clk 0:00:02]} 29.
Qxb7+ {[%clk 0:00:44.5]} 29... Ke8 {[%clk 0:00:01.9]} 30. Qd7+ {[%clk
0:00:43.3]} 30... Kf8 {[%clk 0:00:01.9]} 31. e7+ {[%clk 0:00:44.2]} 1-0

[Event "*** Titled Tuesday Blitz"]
[Site "Chess.com"]
[Date "2020.03.03"]
[Round "9"]
[White "Zarikovs1999"]
[Black "hongnhung1234"]
[Result "0-1"]
[WhiteElo "2326"]
[BlackElo "2251"]
[TimeControl "180+1"]
[EndTime "10:42:57 PST"]
[Termination "hongnhung1234 won by resignation"]

1. e4 {[%clk 0:02:59.5]} 1... c5 {[%clk 0:02:59.7]} 2. Nf3 {[%clk 0:02:54.5]}
2... e6 {[%clk 0:02:59.4]} 3. Nc3 {[%clk 0:02:50]} 3... Nc6 {[%clk 0:02:59.4]}
4. d4 {[%clk 0:02:46.5]} 4... cxd4 {[%clk 0:03:00.3]} 5. Nxd4 {[%clk 0:02:46.9]}
5... Qc7 {[%clk 0:03:00]} 6. g3 {[%clk 0:02:40.7]} 6... a6 {[%clk 0:02:58.6]} 7.
Bg2 {[%clk 0:02:39.1]} 7... Nf6 {[%clk 0:02:58.7]} 8. O-O {[%clk 0:02:39]} 8...
Be7 {[%clk 0:02:58.7]} 9. Be3 {[%clk 0:02:37.3]} 9... O-O {[%clk 0:02:58.3]} 10.
a4 {[%clk 0:02:34.2]} 10... d6 {[%clk 0:02:46.1]} 11. f4 {[%clk 0:02:13.7]}
11... Bd7 {[%clk 0:02:40.8]} 12. Nce2 {[%clk 0:02:08.6]} 12... Ng4 {[%clk
0:02:22.2]} 13. Bc1 {[%clk 0:02:03]} 13... Qb6 {[%clk 0:02:01]} 14. h3 {[%clk
0:01:59.5]} 14... Nxd4 {[%clk 0:01:59.9]} 15. Nxd4 {[%clk 0:02:00.4]} 15... e5
{[%clk 0:01:56.6]} 16. hxg4 {[%clk 0:01:52.7]} 16... exd4 {[%clk 0:01:56.4]} 17.
a5 {[%clk 0:01:44.5]} 17... Qc5 {[%clk 0:01:53.2]} 18. Kh2 {[%clk 0:01:41.2]}
18... Rac8 {[%clk 0:01:51.3]} 19. e5 {[%clk 0:01:20.5]} 19... dxe5 {[%clk
0:01:46.5]} 20. Bxb7 {[%clk 0:01:17.8]} 20... Qxc2+ {[%clk 0:01:43]} 21. Kh3
{[%clk 0:01:14.5]} 21... h5 {[%clk 0:01:18.4]} 22. Bf3 {[%clk 0:01:01]} 22...
hxg4+ {[%clk 0:01:15.3]} 23. Bxg4 {[%clk 0:00:59.6]} 23... Qh7+ {[%clk
0:01:13.6]} 24. Kg2 {[%clk 0:00:56.2]} 24... Rc2+ {[%clk 0:01:12.5]} 25. Rf2
{[%clk 0:00:54.3]} 25... Rxf2+ {[%clk 0:01:09.3]} 26. Kxf2 {[%clk 0:00:52]}
26... Qh2+ {[%clk 0:01:09.5]} 27. Kf1 {[%clk 0:00:51.1]} 27... Bb5+ {[%clk
0:01:00.5]} 28. Be2 {[%clk 0:00:49.3]} 28... Qh3+ {[%clk 0:00:56.1]} 29. Kf2
{[%clk 0:00:47.5]} 29... d3 {[%clk 0:00:49.1]} 30. Bxd3 {[%clk 0:00:44.3]} 30...
Bc5+ {[%clk 0:00:47.7]} 31. Be3 {[%clk 0:00:41]} 31... Qh2+ {[%clk 0:00:37.5]}
32. Kf3 {[%clk 0:00:40.5]} 32... Bxe3 {[%clk 0:00:30.4]} 33. Bxb5 {[%clk
0:00:31.4]} 33... Qf2+ {[%clk 0:00:29.3]} 34. Kg4 {[%clk 0:00:31.8]} 34... axb5
{[%clk 0:00:25.7]} 35. a6 {[%clk 0:00:29]} 35... exf4 {[%clk 0:00:25.6]} 36. Qf3
{[%clk 0:00:27.6]} 36... f5+ {[%clk 0:00:20.4]} 0-1

[Event "*** Titled Tuesday Blitz"]
[Site "Chess.com"]
[Date "2020.03.03"]
[Round "9"]
[White "Dixit_Nikhil"]
[Black "Bulldog167"]
[Result "1-0"]
[WhiteElo "2582"]
[BlackElo "2745"]
[TimeControl "180+1"]
[EndTime "10:43:02 PST"]
[Termination "Dixit_Nikhil won by checkmate"]

1. e4 {[%clk 0:03:00.9]} 1... e5 {[%clk 0:03:00.1]} 2. Nf3 {[%clk 0:03:00.1]}
2... Nc6 {[%clk 0:03:00.3]} 3. Nc3 {[%clk 0:03:00]} 3... Nf6 {[%clk 0:02:55.7]}
4. d4 {[%clk 0:03:00]} 4... Bb4 {[%clk 0:02:48.1]} 5. Nxe5 {[%clk 0:02:56.2]}
5... O-O {[%clk 0:02:46.6]} 6. Nxc6 {[%clk 0:02:51]} 6... dxc6 {[%clk
0:02:46.7]} 7. Bd3 {[%clk 0:02:51.6]} 7... Qxd4 {[%clk 0:02:41]} 8. Bd2 {[%clk
0:02:51.7]} 8... Bg4 {[%clk 0:02:33.1]} 9. f3 {[%clk 0:02:48.1]} 9... Be6 {[%clk
0:02:32.8]} 10. Qe2 {[%clk 0:02:47.1]} 10... Rad8 {[%clk 0:02:19.2]} 11. a3
{[%clk 0:02:42.5]} 11... Ba5 {[%clk 0:02:17]} 12. O-O-O {[%clk 0:02:41.3]} 12...
Rfe8 {[%clk 0:01:42.1]} 13. g4 {[%clk 0:02:26.4]} 13... a6 {[%clk 0:01:24.6]}
14. Kb1 {[%clk 0:02:15.6]} 14... c5 {[%clk 0:00:55.5]} 15. Be3 {[%clk
0:01:39.7]} 15... Qd6 {[%clk 0:00:44.3]} 16. g5 {[%clk 0:01:18.4]} 16... Nd7
{[%clk 0:00:43.3]} 17. Bc4 {[%clk 0:01:06.9]} 17... Qc6 {[%clk 0:00:39.5]} 18.
Bd5 {[%clk 0:01:00.3]} 18... Bxd5 {[%clk 0:00:35.6]} 19. Nxd5 {[%clk 0:01:01.2]}
19... Qe6 {[%clk 0:00:27.4]} 20. h4 {[%clk 0:00:57.8]} 20... c6 {[%clk
0:00:26.1]} 21. Nf4 {[%clk 0:00:58.1]} 21... Qe7 {[%clk 0:00:26.3]} 22. h5
{[%clk 0:00:49.2]} 22... b5 {[%clk 0:00:24.5]} 23. g6 {[%clk 0:00:47.9]} 23...
fxg6 {[%clk 0:00:20.5]} 24. hxg6 {[%clk 0:00:48.8]} 24... h6 {[%clk 0:00:21.2]}
25. Nh5 {[%clk 0:00:46.6]} 25... Bc7 {[%clk 0:00:19.4]} 26. Nxg7 {[%clk
0:00:44.1]} 26... Qxg7 {[%clk 0:00:16.4]} 27. Bxh6 {[%clk 0:00:45]} 27... Qf6
{[%clk 0:00:16.1]} 28. Rdg1 {[%clk 0:00:40.3]} 28... Ne5 {[%clk 0:00:15.8]} 29.
Bg5 {[%clk 0:00:32.2]} 29... Qxf3 {[%clk 0:00:15.9]} 30. Qh2 {[%clk 0:00:32.4]}
30... Nxg6 {[%clk 0:00:05]} 31. Qh7+ {[%clk 0:00:30.2]} 31... Kf8 {[%clk
0:00:04.8]} 32. Bh6# {[%clk 0:00:31.1]} 1-0

[Event "*** Titled Tuesday Blitz"]
[Site "Chess.com"]
[Date "2020.03.03"]
[Round "9"]
[White "Palacios-LLera"]
[Black "GukeshDommaraju"]
[Result "0-1"]
[WhiteElo "2533"]
[BlackElo "2655"]
[TimeControl "180+1"]
[EndTime "10:43:04 PST"]
[Termination "GukeshDommaraju won by checkmate"]

1. d4 {[%clk 0:03:00.9]} 1... Nf6 {[%clk 0:02:55.1]} 2. Nf3 {[%clk 0:03:00.8]}
2... g6 {[%clk 0:02:53]} 3. c3 {[%clk 0:03:00.9]} 3... Bg7 {[%clk 0:02:52.8]} 4.
Bg5 {[%clk 0:03:01.4]} 4... O-O {[%clk 0:02:53.1]} 5. Nbd2 {[%clk 0:03:01]} 5...
d6 {[%clk 0:02:53.5]} 6. e4 {[%clk 0:03:01.2]} 6... h6 {[%clk 0:02:53.1]} 7. Bh4
{[%clk 0:03:00.8]} 7... g5 {[%clk 0:02:52.6]} 8. Bg3 {[%clk 0:03:00.9]} 8... Nc6
{[%clk 0:02:49]} 9. Bc4 {[%clk 0:02:56.3]} 9... e6 {[%clk 0:02:47.4]} 10. O-O
{[%clk 0:02:51.5]} 10... Nh5 {[%clk 0:02:46.7]} 11. Re1 {[%clk 0:02:50.8]} 11...
Nxg3 {[%clk 0:02:45.9]} 12. hxg3 {[%clk 0:02:50.4]} 12... Kh8 {[%clk 0:02:45.9]}
13. Qc2 {[%clk 0:02:49.5]} 13... a6 {[%clk 0:02:44.5]} 14. a4 {[%clk 0:02:48.9]}
14... Ne7 {[%clk 0:02:42.5]} 15. Nf1 {[%clk 0:02:44.8]} 15... Ng6 {[%clk
0:02:42.1]} 16. Ne3 {[%clk 0:02:43.6]} 16... h5 {[%clk 0:02:38.8]} 17. Kh2
{[%clk 0:02:31.8]} 17... g4 {[%clk 0:02:38.1]} 18. Nd2 {[%clk 0:02:30.6]} 18...
c5 {[%clk 0:02:26.5]} 19. dxc5 {[%clk 0:02:27.4]} 19... dxc5 {[%clk 0:02:26.4]}
20. Rad1 {[%clk 0:02:24.5]} 20... Bh6 {[%clk 0:02:23.1]} 21. Nb3 {[%clk
0:02:09.8]} 21... Qe7 {[%clk 0:02:18.1]} 22. Qd2 {[%clk 0:01:59.8]} 22... h4
{[%clk 0:02:12.5]} 23. Qd6 {[%clk 0:01:48.2]} 23... hxg3+ {[%clk 0:02:12]} 24.
fxg3 {[%clk 0:01:48.4]} 24... Qg5 {[%clk 0:02:06]} 25. Qxc5 {[%clk 0:01:42.5]}
25... Ne5 {[%clk 0:02:03.9]} 26. Kg1 {[%clk 0:01:08.5]} 26... b6 {[%clk
0:01:31.4]} 27. Qd4 {[%clk 0:00:59]} 27... Bg7 {[%clk 0:01:29.6]} 28. Qd2 {[%clk
0:00:52.5]} 28... Bd7 {[%clk 0:01:24.3]} 29. a5 {[%clk 0:00:48.7]} 29... b5
{[%clk 0:01:21.7]} 30. Be2 {[%clk 0:00:44.1]} 30... Bh6 {[%clk 0:01:15.2]} 31.
Bf1 {[%clk 0:00:41.2]} 31... Rad8 {[%clk 0:01:12.9]} 32. Qf2 {[%clk 0:00:35.6]}
32... Bc6 {[%clk 0:01:08.2]} 33. Nc5 {[%clk 0:00:33.2]} 33... Rxd1 {[%clk
0:01:02.9]} 34. Nxd1 {[%clk 0:00:33.2]} 34... Rd8 {[%clk 0:01:02.2]} 35. Ne3
{[%clk 0:00:30.3]} 35... Kg7 {[%clk 0:00:51.9]} 36. b4 {[%clk 0:00:29.4]} 36...
Rh8 {[%clk 0:00:50.9]} 37. Nc2 {[%clk 0:00:19]} 37... Qh5 {[%clk 0:00:48.8]} 38.
Qd4 {[%clk 0:00:14.5]} 38... Bd2 {[%clk 0:00:39]} 39. Qxd2 {[%clk 0:00:11.5]}
39... Nf3+ {[%clk 0:00:38.6]} 40. gxf3 {[%clk 0:00:10.1]} 40... Qh1+ {[%clk
0:00:38.6]} 41. Kf2 {[%clk 0:00:10.3]} 41... Qxf3+ {[%clk 0:00:38.9]} 42. Kg1
{[%clk 0:00:07.2]} 42... Rh1# {[%clk 0:00:39.8]} 0-1

[Event "*** Titled Tuesday Blitz"]
[Site "Chess.com"]
[Date "2020.03.03"]
[Round "9"]
[White "MaxLeto"]
[Black "suyu28"]
[Result "0-1"]
[WhiteElo "2415"]
[BlackElo "2572"]
[TimeControl "180+1"]
[EndTime "10:43:04 PST"]
[Termination "suyu28 won on time"]

1. g4 {[%clk 0:02:57]} 1... e5 {[%clk 0:02:58.5]} 2. h4 {[%clk 0:02:40.5]} 2...
d5 {[%clk 0:02:57.8]} 3. g5 {[%clk 0:02:39.8]} 3... Nc6 {[%clk 0:02:56.7]} 4. d3
{[%clk 0:02:32.9]} 4... h6 {[%clk 0:02:55.7]} 5. Bg2 {[%clk 0:02:31]} 5... hxg5
{[%clk 0:02:55.6]} 6. Bxg5 {[%clk 0:02:31.6]} 6... Be7 {[%clk 0:02:54.2]} 7. Nf3
{[%clk 0:02:19.4]} 7... Be6 {[%clk 0:02:40.5]} 8. Qd2 {[%clk 0:02:17.4]} 8... f6
{[%clk 0:02:39.3]} 9. Nc3 {[%clk 0:01:38.9]} 9... fxg5 {[%clk 0:02:33.9]} 10.
Nxg5 {[%clk 0:01:39.8]} 10... Bxg5 {[%clk 0:02:32]} 11. hxg5 {[%clk 0:01:40.7]}
11... Rxh1+ {[%clk 0:02:31]} 12. Bxh1 {[%clk 0:01:41.6]} 12... Qd7 {[%clk
0:02:28.1]} 13. O-O-O {[%clk 0:01:38.9]} 13... O-O-O {[%clk 0:02:27.6]} 14. Kb1
{[%clk 0:01:39.5]} 14... Nge7 {[%clk 0:02:26.2]} 15. e3 {[%clk 0:01:29.6]} 15...
Rf8 {[%clk 0:02:24.8]} 16. f4 {[%clk 0:01:26.3]} 16... exf4 {[%clk 0:02:20.2]}
17. exf4 {[%clk 0:01:26.2]} 17... Nf5 {[%clk 0:02:13.2]} 18. Re1 {[%clk
0:01:24.7]} 18... Bg8 {[%clk 0:02:07.3]} 19. Bf3 {[%clk 0:01:16.7]} 19... Nfd4
{[%clk 0:01:51.3]} 20. Bh5 {[%clk 0:01:08]} 20... Kb8 {[%clk 0:01:49.8]} 21. Qg2
{[%clk 0:01:00.5]} 21... a6 {[%clk 0:01:38.9]} 22. Bg4 {[%clk 0:00:53.1]} 22...
Qd6 {[%clk 0:01:37]} 23. f5 {[%clk 0:00:48.3]} 23... Qf4 {[%clk 0:01:15.8]} 24.
f6 {[%clk 0:00:20.6]} 24... Qxg5 {[%clk 0:01:09]} 25. fxg7 {[%clk 0:00:11.1]}
25... Qxg7 {[%clk 0:01:08.3]} 26. Qh3 {[%clk 0:00:07.5]} 26... Nb5 {[%clk
0:01:04]} 27. Nxb5 {[%clk 0:00:06]} 27... axb5 {[%clk 0:01:04.1]} 28. Bd1 {[%clk
0:00:04.3]} 28... b4 {[%clk 0:01:01.8]} 29. Qe3 {[%clk 0:00:04.1]} 29... d4
{[%clk 0:00:55.3]} 30. Qd2 {[%clk 0:00:03.7]} 30... Qf7 {[%clk 0:00:49.4]} 31.
b3 {[%clk 0:00:04.2]} 31... Qd5 {[%clk 0:00:48.6]} 32. Bg4 {[%clk 0:00:03]}
32... Qc5 {[%clk 0:00:47.3]} 33. Bh3 {[%clk 0:00:01.9]} 33... Na7 {[%clk
0:00:47]} 34. Bg2 {[%clk 0:00:01.8]} 34... Nb5 {[%clk 0:00:46.3]} 35. Kb2 {[%clk
0:00:02.1]} 35... Qc3+ {[%clk 0:00:45.7]} 36. Qxc3 {[%clk 0:00:02.2]} 36...
dxc3+ {[%clk 0:00:45.6]} 0-1

[Event "*** Titled Tuesday Blitz"]
[Site "Chess.com"]
[Date "2020.03.03"]
[Round "9"]
[White "ajian"]
[Black "boasovietica"]
[Result "0-1"]
[WhiteElo "2292"]
[BlackElo "2504"]
[TimeControl "180+1"]
[EndTime "10:43:07 PST"]
[Termination "boasovietica won by resignation"]

1. d4 {[%clk 0:03:00.9]} 1... Nf6 {[%clk 0:02:59.4]} 2. c4 {[%clk 0:03:00.7]}
2... g6 {[%clk 0:02:58.3]} 3. Nc3 {[%clk 0:03:00.1]} 3... Bg7 {[%clk 0:02:58.8]}
4. e4 {[%clk 0:02:59.7]} 4... O-O {[%clk 0:02:59]} 5. Nf3 {[%clk 0:02:59.6]}
5... d6 {[%clk 0:02:59.4]} 6. Be2 {[%clk 0:02:59.5]} 6... Bg4 {[%clk 0:02:59.6]}
7. O-O {[%clk 0:02:59.1]} 7... Nfd7 {[%clk 0:02:59]} 8. Be3 {[%clk 0:02:58.4]}
8... c5 {[%clk 0:02:56.6]} 9. d5 {[%clk 0:02:53.8]} 9... Na6 {[%clk 0:02:56.4]}
10. Nd2 {[%clk 0:02:49.6]} 10... Bxe2 {[%clk 0:02:55.2]} 11. Qxe2 {[%clk
0:02:50.5]} 11... Nc7 {[%clk 0:02:55.4]} 12. Rfc1 {[%clk 0:02:32.2]} 12... a6
{[%clk 0:02:54.9]} 13. a4 {[%clk 0:02:29.4]} 13... Rb8 {[%clk 0:02:54]} 14. Rab1
{[%clk 0:02:10.9]} 14... Nf6 {[%clk 0:02:32.5]} 15. b4 {[%clk 0:02:03.2]} 15...
b6 {[%clk 0:02:32.3]} 16. a5 {[%clk 0:01:58.1]} 16... cxb4 {[%clk 0:02:26.1]}
17. Rxb4 {[%clk 0:01:52.5]} 17... bxa5 {[%clk 0:02:25]} 18. Ra4 {[%clk
0:01:38.6]} 18... Rb2 {[%clk 0:01:55.6]} 19. Rb1 {[%clk 0:01:19.2]} 19... Qb8
{[%clk 0:01:43.2]} 20. Raa1 {[%clk 0:01:12.4]} 20... Nd7 {[%clk 0:01:34]} 21.
Na4 {[%clk 0:01:07]} 21... Rb4 {[%clk 0:01:24.5]} 22. Rxb4 {[%clk 0:00:48.7]}
22... Qxb4 {[%clk 0:01:23.2]} 23. Ra2 {[%clk 0:00:40.5]} 23... Rb8 {[%clk
0:01:20.8]} 24. Qd1 {[%clk 0:00:16.8]} 24... e6 {[%clk 0:00:51.5]} 25. Qc2
{[%clk 0:00:15.2]} 25... exd5 {[%clk 0:00:40.9]} 26. cxd5 {[%clk 0:00:14.9]}
26... Nb5 {[%clk 0:00:40.6]} 27. g3 {[%clk 0:00:06.3]} 27... Ne5 {[%clk
0:00:31.2]} 28. Kg2 {[%clk 0:00:05.6]} 28... Nd4 {[%clk 0:00:21.5]} 29. Bxd4
{[%clk 0:00:03.7]} 29... Qxd4 {[%clk 0:00:21.7]} 30. Nc3 {[%clk 0:00:03]} 30...
Nd3 {[%clk 0:00:15.6]} 31. Ne2 {[%clk 0:00:02]} 31... Ne1+ {[%clk 0:00:15]} 0-1

[Event "*** Titled Tuesday Blitz"]
[Site "Chess.com"]
[Date "2020.03.03"]
[Round "9"]
[White "Jungle_Jaguar"]
[Black "Arystanner"]
[Result "0-1"]
[WhiteElo "2583"]
[BlackElo "2743"]
[TimeControl "180+1"]
[EndTime "10:43:08 PST"]
[Termination "Arystanner won by checkmate"]

1. e4 {[%clk 0:03:00.9]} 1... c6 {[%clk 0:02:59.6]} 2. d4 {[%clk 0:03:00.5]}
2... d5 {[%clk 0:03:00.3]} 3. exd5 {[%clk 0:03:01.4]} 3... cxd5 {[%clk
0:03:00.7]} 4. Bd3 {[%clk 0:03:01.3]} 4... Nc6 {[%clk 0:03:01.2]} 5. c3 {[%clk
0:03:01.1]} 5... Nf6 {[%clk 0:03:01.8]} 6. Bf4 {[%clk 0:02:57.6]} 6... Bg4
{[%clk 0:03:01.4]} 7. Qb3 {[%clk 0:02:57.2]} 7... e5 {[%clk 0:03:01.4]} 8. dxe5
{[%clk 0:02:32.8]} 8... Nh5 {[%clk 0:03:01.3]} 9. Be3 {[%clk 0:02:29.7]} 9...
Nxe5 {[%clk 0:03:00.7]} 10. Bb5+ {[%clk 0:02:27.8]} 10... Nc6 {[%clk 0:03:00.3]}
11. Nd2 {[%clk 0:02:25.3]} 11... Be6 {[%clk 0:02:56.3]} 12. Qa4 {[%clk
0:02:20.4]} 12... Qc7 {[%clk 0:02:45.1]} 13. Ne2 {[%clk 0:02:15.8]} 13... Bd6
{[%clk 0:02:44.8]} 14. Nd4 {[%clk 0:02:06.8]} 14... Bd7 {[%clk 0:02:44.7]} 15.
Nxc6 {[%clk 0:02:04.2]} 15... bxc6 {[%clk 0:02:44.3]} 16. Be2 {[%clk 0:02:04.8]}
16... Nf6 {[%clk 0:02:42.3]} 17. Qh4 {[%clk 0:02:02.7]} 17... O-O {[%clk
0:02:38.2]} 18. O-O {[%clk 0:01:59.3]} 18... Rfe8 {[%clk 0:02:37.5]} 19. Bd3
{[%clk 0:01:53.6]} 19... Be7 {[%clk 0:01:59.5]} 20. Bf4 {[%clk 0:01:46.4]} 20...
Qb6 {[%clk 0:01:53.9]} 21. Nb3 {[%clk 0:01:26.1]} 21... Ne4 {[%clk 0:01:53.4]}
22. Qh5 {[%clk 0:01:26.3]} 22... g6 {[%clk 0:01:53.4]} 23. Qf3 {[%clk
0:01:25.4]} 23... Bf8 {[%clk 0:01:41.3]} 24. Be3 {[%clk 0:01:24]} 24... Qc7
{[%clk 0:01:38.5]} 25. Bf4 {[%clk 0:01:20.5]} 25... Bd6 {[%clk 0:01:38]} 26.
Bxd6 {[%clk 0:01:18.4]} 26... Qxd6 {[%clk 0:01:38.3]} 27. Rad1 {[%clk
0:01:19.3]} 27... f5 {[%clk 0:01:31.7]} 28. Nd4 {[%clk 0:01:19.3]} 28... c5
{[%clk 0:01:30.6]} 29. Ne2 {[%clk 0:01:16.9]} 29... Rab8 {[%clk 0:01:27.6]} 30.
b3 {[%clk 0:01:03.5]} 30... Bc6 {[%clk 0:01:27.5]} 31. Bxe4 {[%clk 0:00:48.8]}
31... fxe4 {[%clk 0:01:23.9]} 32. Qg4 {[%clk 0:00:46.6]} 32... Rbd8 {[%clk
0:01:18.9]} 33. Qf4 {[%clk 0:00:46.4]} 33... Qxf4 {[%clk 0:01:12.7]} 34. Nxf4
{[%clk 0:00:47.3]} 34... d4 {[%clk 0:01:13]} 35. b4 {[%clk 0:00:40.3]} 35...
dxc3 {[%clk 0:00:39.3]} 36. bxc5 {[%clk 0:00:40.2]} 36... Rxd1 {[%clk
0:00:36.2]} 37. Rxd1 {[%clk 0:00:41.1]} 37... c2 {[%clk 0:00:34.7]} 38. Rc1
{[%clk 0:00:38.7]} 38... Rd8 {[%clk 0:00:34.6]} 39. Rxc2 {[%clk 0:00:19.9]}
39... Rd1# {[%clk 0:00:33.6]} 0-1